[Event "7th Summer Cup 2024"]
[Site "Rhodes"]
[Date "2024.06.24"]
[Round "3.1"]
[White "Mostbauer, Florian"]
[Black "Nasuta, Grzegorz"]
[Result "1/2-1/2"]
[ECO "D35"]
[WhiteElo "2324"]
[BlackElo "2541"]
[Annotator "TA"]
[PlyCount "64"]
[EventDate "2024.06.22"]
[EventType "swiss"]
[EventCountry "GRE"]
[SourceTitle "playchess.com"]
[Source "ChessBase"]
[SourceQuality "1"]
[TimeControl "15/5400+30:1800+30"]

{[%evp 29,64,0,0,0,0,-8,-3,-10,-8,-6,0,0,0,-11,-4,-14,-12,-18,0,0,0,0,0,0,14,14,12,0,0,0,0,0,0,0,0,0,0]} 1. d4 {[%emt 0:00:03]} d5 {[%emt 0:01:46]} 2. Nf3 {[%emt 0:00:24]} Nf6 {[%emt 0:00:14]} 3. c4 {[%emt 0:00:19]} e6 {[%emt 0:00:16]} 4. cxd5 {[%emt 0:00:20]} exd5 {[%emt 0:00:13]} 5. Nc3 {[%emt 0:00:11]} c6 {[%emt 0:00:17]} 6. Qc2 {[%emt 0:00:36]} g6 {[%emt 0:03:34]} 7. Bg5 {[%emt 0:05:05]} Be7 {[%emt 0:00:49]} 8. e3 {[%emt 0:02:18]} Bf5 {[%emt 0:00:09]} 9. Bd3 {[%emt 0:01:18]} Bxd3 {[%emt 0:00:07]} 10. Qxd3 {[%emt 0:00:08]} Nbd7 {[%emt 0:00:24]} 11. Bh6 {[%emt 0:11:19]} Ng4 {[%emt 0:19:27]} 12. Bf4 {[%emt 0:00:18]} O-O {[%emt 0:00:10]} 13. h3 {[%emt 0:00:52]} Ngf6 {[%emt 0:00:06]} 14. O-O {[%emt 0:01:03]} Re8 {[%emt 0:00:43]} 15. Rab1 {[%emt 0:02:20]} a5 {[%emt 0:00:09] The position is equal.} 16. Rfc1 {[%emt 0:34:27]} Bf8 {[%emt 0:34:07]} 17. Ne5 {[%emt 0:11:36]} Nxe5 {[%emt 0:10:02]} 18. Bxe5 {[%emt 0:00:15]} Nd7 {[%emt 0:01:00]} 19. Bg3 {[%emt 0:04:29]} Re6 {[%emt 0:13:45]} 20. Rc2 {[%emt 0:06:37]} Nb6 {[%emt 0:03:51]} 21. b3 {[%emt 0:01:45]} Nd7 {[%emt 0:11:56]} 22. Ne2 {[%emt 0:01:39][%cal Bc3e2,Be2c1,Bc1d3][%mdl 32]} Re8 {[%emt 0:03:37]} 23. Qd1 {[%emt 0:03:01]} Nb6 {[%emt 0:05:24][%cal Bd7b6,Bb6c8,Bc8d6,Bd6e4][%mdl 32]} 24. Nc1 {[%emt 0:03:17]} Bd6 {[%emt 0:00:07]} 25. Bxd6 {[%emt 0:00:44]} Qxd6 {[%emt 0:00:04]} 26. Nd3 {[%emt 0:00:29]} Qe7 {[%emt 0:00:14]} 27. a4 {[%emt 0:13:26]} Nc8 {[%emt 0:06:13]} 28. Qe1 {[%emt 0:05:07]} Nd6 {[%emt 0:01:14]} 29. Qc3 {[%emt 0:04:55]} Ne4 {[%emt 0:01:59]} 30. Qe1 {[%emt 0:01:01]} Nd6 {[%emt 0:02:14]} 31. Qc3 {[%emt 0:00:18]} Ne4 {[%emt 0:03:07]} 32. Qe1 {[%emt 0:00:08]} Nd6 {[%emt 0:00:05] A rather calm draw.   Weighted Error Value: White=0.03 (flawless) /Black=0.03 (flawless) .  OK:         	White=7     	Black=4} 1/2-1/2

[Event "7th Summer Cup 2024"]
[Site "Rhodes"]
[Date "2024.06.24"]
[Round "3.2"]
[White "Mickiewicz, Piotr"]
[Black "Sibashvili, Giorgi"]
[Result "0-1"]
[ECO "C54"]
[WhiteElo "2257"]
[BlackElo "2423"]
[Annotator "RC"]
[PlyCount "84"]
[EventDate "2024.06.22"]
[EventType "swiss"]
[EventCountry "GRE"]
[SourceTitle "playchess.com"]
[Source "ChessBase"]
[SourceQuality "1"]
[TimeControl "15/5400+30:1800+30"]

1. e4 {[%emt 0:00:04]} e5 {[%emt 0:07:33]} 2. Nf3 {[%emt 0:00:09]} Nc6 {[%emt 0:00:05]} 3. Bc4 {[%emt 0:00:21]} Bc5 {[%emt 0:00:44]} 4. c3 {[%emt 0:00:12]} Nf6 {[%emt 0:00:28]} 5. d3 {[%emt 0:00:06]} O-O {[%emt 0:00:35]} 6. Nbd2 {[%emt 0:01:06]} d5 {[%emt 0:04:22]} 7. exd5 {[%emt 0:00:05]} Nxd5 {[%emt 0:00:05]} 8. Ne4 {[%emt 0:00:09]} Be7 {[%emt 0:02:15]} 9. O-O {[%emt 0:00:26]} Nb6 {[%emt 0:04:29]} 10. Bb3 {[%emt 0:01:07]} Bf5 {[%emt 0:01:39]} 11. a4 {[%emt 0:00:31]} a5 {[%emt 0:04:31]} 12. Be3 {[%emt 0:00:12]} Nd5 {[%emt 0:03:11]} 13. Bc4 {[%emt 0:00:06]} Nxe3 {[%emt 0:08:12]} 14. fxe3 {[%emt 0:00:42]} Bxe4 {[%emt 0:02:50]} 15. dxe4 {[%emt 0:00:05]} Bc5 {[%emt 0:00:19]} 16. Qb3 {[%emt 0:44:00]} Bxe3+ {[%emt 0:36:35]} 17. Kh1 {[%emt 0:00:11]} Rb8 {[%emt 0:00:39]} 18. g3 {[%emt 0:10:02]} Qe7 {[%emt 0:05:35]} 19. Nh4 {[%emt 0:06:43]} g6 {[%emt 0:01:02]} 20. Rf3 {[%emt 0:00:46]} Bc5 {[%emt 0:07:35]} 21. Raf1 {[%emt 0:03:34]} Nd8 {[%emt 0:00:27]} 22. Rf6 {[%emt 0:19:01]} Kg7 {[%emt 0:02:25]} 23. g4 {[%emt 0:11:13]} Ne6 {[%emt 0:09:12]} 24. Bxe6 {[%emt 0:06:49]} fxe6 {[%emt 0:00:11]} 25. g5 {[%emt 0:00:17]} Be3 {[%emt 0:02:25]} 26. Kg2 {[%emt 0:08:04]} Bxg5 {[%emt 0:11:22]} 27. Rxe6 {[%emt 0:00:33]} Qd7 {[%emt 0:00:33]} 28. Nf3 {[%emt 0:01:31]} Bf4 {[%emt 0:01:48]} 29. Qd5 {[%emt 0:03:07]} Qxd5 {[%emt 0:01:39]} 30. exd5 {[%emt 0:00:05]} Rbe8 {[%emt 0:01:26]} 31. Rd1 {[%emt 0:08:58]} Kf7 {[%emt 0:01:10]} 32. Rxe8 {[%emt 0:00:51]} Rxe8 {[%emt 0:01:43]} 33. Re1 {[%emt 0:03:38]} Kf6 {[%emt 0:01:10]} 34. Re4 {[%emt 0:01:11]} Rd8 {[%emt 0:01:30]} 35. c4 {[%emt 0:00:46]} c6 {[%emt 0:00:32]} 36. dxc6 {[%emt 0:00:48]} bxc6 {[%emt 0:00:05]} 37. Re2 {[%emt 0:00:53]} g5 {[%emt 0:00:20]} 38. h3 {[%emt 0:00:17]} h5 {[%emt 0:00:22]} 39. Ne1 {[%emt 0:00:41]} Kf5 {[%emt 0:01:44]} 40. Kf1 {[%emt 0:00:00]} g4 {[%emt 0:00:00]} 41. Nc2 {[%emt 0:00:00]} gxh3 {[%emt 0:00:00]} 42. Ne3+ {[%emt 0:00:00]} Ke6 {[%emt 0:00:00]} 0-1

[Event "7th Summer Cup 2024"]
[Site "Rhodes"]
[Date "2024.06.24"]
[Round "3.3"]
[White "Stefanova, Antoaneta"]
[Black "Ladopoulos, Dimitrios"]
[Result "1/2-1/2"]
[ECO "C07"]
[WhiteElo "2417"]
[BlackElo "2374"]
[Annotator "RC"]
[PlyCount "33"]
[EventDate "2024.06.22"]
[EventType "swiss"]
[EventCountry "GRE"]
[SourceTitle "playchess.com"]
[Source "ChessBase"]
[SourceQuality "1"]
[TimeControl "15/5400+30:1800+30"]

1. e4 {[%emt 0:02:28]} e6 {[%emt 0:03:04]} 2. d4 {[%emt 0:00:27]} d5 {[%emt 0:00:09]} 3. Nd2 {[%emt 0:00:11]} c5 {[%emt 0:00:26]} 4. Ngf3 {[%emt 0:01:19]} cxd4 {[%emt 0:01:06]} 5. Nxd4 {[%emt 0:00:39]} Nf6 {[%emt 0:00:07]} 6. exd5 {[%emt 0:02:14]} Nxd5 {[%emt 0:06:25]} 7. Ne4 {[%emt 0:06:09]} Be7 {[%emt 0:04:54]} 8. Bb5+ {[%emt 0:13:10]} Bd7 {[%emt 0:08:05]} 9. c4 {[%emt 0:01:26]} Nf6 {[%emt 0:12:57]} 10. Nc3 {[%emt 0:02:25]} a6 {[%emt 0:06:04]} 11. Bxd7+ {[%emt 0:03:03]} Qxd7 {[%emt 0:01:47]} 12. Be3 {[%emt 0:15:50]} Nc6 {[%emt 0:05:16]} 13. O-O {[%emt 0:12:54]} Nxd4 {[%emt 0:14:05]} 14. Qxd4 {[%emt 0:02:07]} Qxd4 {[%emt 0:04:20]} 15. Bxd4 {[%emt 0:00:05]} Rc8 {[%emt 0:00:21]} 16. b3 {[%emt 0:30:52]} Bc5 {[%emt 0:31:16]} 17. Ne2 {[%emt 0:06:17]} 1/2-1/2

[Event "7th Summer Cup 2024"]
[Site "Rhodes"]
[Date "2024.06.24"]
[Round "3.4"]
[White "Al Maamari, Wafia Darwish"]
[Black "Kotronias, Vasilios"]
[Result "0-1"]
[ECO "A40"]
[WhiteElo "1933"]
[BlackElo "2415"]
[Annotator "RC"]
[PlyCount "72"]
[EventDate "2024.06.22"]
[EventType "swiss"]
[EventCountry "GRE"]
[SourceTitle "playchess.com"]
[Source "ChessBase"]
[SourceQuality "1"]
[TimeControl "15/5400+30:1800+30"]

1. Nf3 {[%emt 0:00:06]} g6 {[%emt 0:00:40]} 2. d4 {[%emt 0:01:11]} Bg7 {[%emt 0:00:10]} 3. b3 {[%emt 0:01:05]} c5 {[%emt 0:00:25]} 4. Bb2 {[%emt 0:00:30]} Nc6 {[%emt 0:00:07]} 5. e3 {[%emt 0:01:54]} d5 {[%emt 0:03:18]} 6. Be2 {[%emt 0:04:19]} Bg4 {[%emt 0:00:15]} 7. O-O {[%emt 0:02:47]} Bxf3 {[%emt 0:00:06]} 8. Bxf3 {[%emt 0:00:29]} cxd4 {[%emt 0:00:04]} 9. exd4 {[%emt 0:03:32]} e6 {[%emt 0:00:08]} 10. Qd3 {[%emt 0:04:55]} Nge7 {[%emt 0:00:19]} 11. c3 {[%emt 0:01:36]} O-O {[%emt 0:00:13]} 12. Nd2 {[%emt 0:02:23]} Nf5 {[%emt 0:00:46]} 13. g3 {[%emt 0:01:31]} a6 {[%emt 0:03:28]} 14. Bg4 {[%emt 0:05:52]} Nd6 {[%emt 0:00:38]} 15. f4 {[%emt 0:01:34]} b5 {[%emt 0:00:11]} 16. Nf3 {[%emt 0:34:28]} f5 {[%emt 0:30:38]} 17. Bh3 {[%emt 0:00:35]} Ne4 {[%emt 0:00:03]} 18. Ne5 {[%emt 0:08:02]} Nxe5 {[%emt 0:00:50]} 19. dxe5 {[%emt 0:01:32]} Rc8 {[%emt 0:01:14]} 20. Qd4 {[%emt 0:04:47]} Rf7 {[%emt 0:01:08]} 21. Bg2 {[%emt 0:03:35]} Bf8 {[%emt 0:00:08]} 22. b4 {[%emt 0:03:44]} Rc4 {[%emt 0:03:55]} 23. Qe3 {[%emt 0:02:42]} Nc5 {[%emt 0:00:06]} 24. Rfc1 {[%emt 0:03:01]} Na4 {[%emt 0:00:11]} 25. Qd2 {[%emt 0:02:02]} Rfc7 {[%emt 0:02:58]} 26. Bf1 {[%emt 0:03:08]} R4c6 {[%emt 0:01:18]} 27. Rab1 {[%emt 0:05:01]} Qc8 {[%emt 0:01:18]} 28. Qd4 {[%emt 0:02:05]} Nxb2 {[%emt 0:01:52]} 29. Rxb2 {[%emt 0:00:11]} Rxc3 {[%emt 0:00:05]} 30. Rxc3 {[%emt 0:00:05]} Rxc3 {[%emt 0:00:04]} 31. Qb6 {[%emt 0:01:24]} Rc6 {[%emt 0:01:15]} 32. Qa7 {[%emt 0:01:48]} Rc1 {[%emt 0:00:22]} 33. Qb6 {[%emt 0:04:21]} Rxf1+ {[%emt 0:00:14]} 34. Kxf1 {[%emt 0:00:20]} Qc1+ {[%emt 0:00:03]} 35. Kg2 {[%emt 0:00:14]} Qxb2+ {[%emt 0:00:06]} 36. Kh3 {[%emt 0:00:13]} Kf7 {[%emt 0:00:10]} 0-1

[Event "7th Summer Cup 2024"]
[Site "Rhodes"]
[Date "2024.06.24"]
[Round "3.5"]
[White "Papasimakopoulos, Alexandros"]
[Black "Sandalakis, Nikolaos"]
[Result "1-0"]
[ECO "A06"]
[WhiteElo "2375"]
[BlackElo "2229"]
[Annotator "RC"]
[PlyCount "107"]
[EventDate "2024.06.22"]
[EventType "swiss"]
[EventCountry "GRE"]
[SourceTitle "playchess.com"]
[Source "ChessBase"]
[SourceQuality "1"]
[TimeControl "15/5400+30:1800+30"]

1. Nf3 {[%emt 0:08:49]} d5 {[%emt 0:01:27]} 2. b3 {[%emt 0:00:29]} Nf6 {[%emt 0:04:56]} 3. Bb2 {[%emt 0:00:12]} Bf5 {[%emt 0:01:21]} 4. c4 {[%emt 0:06:55]} e6 {[%emt 0:04:27]} 5. e3 {[%emt 0:02:47]} Be7 {[%emt 0:03:23]} 6. Be2 {[%emt 0:00:07]} h6 {[%emt 0:03:29]} 7. d4 {[%emt 0:01:36]} c6 {[%emt 0:08:11]} 8. Nbd2 {[%emt 0:00:38]} Nbd7 {[%emt 0:00:52]} 9. a3 {[%emt 0:02:30]} a5 {[%emt 0:06:36]} 10. c5 {[%emt 0:07:10]} Ne4 {[%emt 0:07:34]} 11. Nxe4 {[%emt 0:03:52]} Bxe4 {[%emt 0:00:38]} 12. O-O {[%emt 0:05:45]} O-O {[%emt 0:03:59]} 13. Nd2 {[%emt 0:01:22]} Bg6 {[%emt 0:03:18]} 14. b4 {[%emt 0:02:46]} Bf6 {[%emt 0:07:26]} 15. f4 {[%emt 0:01:03]} b6 {[%emt 0:06:34]} 16. Qc1 {[%emt 0:32:35]} Qc7 {[%emt 0:41:33]} 17. Bc3 {[%emt 0:02:46]} bxc5 {[%emt 0:03:59]} 18. bxc5 {[%emt 0:02:04]} a4 {[%emt 0:03:40]} 19. Bd1 {[%emt 0:02:46]} Bd3 {[%emt 0:02:40]} 20. Rf2 {[%emt 0:00:29]} Be7 {[%emt 0:05:23]} 21. Bc2 {[%emt 0:00:42]} Bxc2 {[%emt 0:00:22]} 22. Qxc2 {[%emt 0:00:02]} f5 {[%emt 0:00:25]} 23. Rb1 {[%emt 0:02:16]} Rfb8 {[%emt 0:00:35]} 24. Bb4 {[%emt 0:02:35]} Nf6 {[%emt 0:00:58]} 25. Rff1 {[%emt 0:00:28]} Qa7 {[%emt 0:01:12]} 26. Qd3 {[%emt 0:01:29]} Qa6 {[%emt 0:02:44]} 27. Qxa6 {[%emt 0:01:45]} Rxa6 {[%emt 0:00:03]} 28. Rb2 {[%emt 0:00:52]} Ra7 {[%emt 0:02:13]} 29. Rfb1 {[%emt 0:01:05]} Rab7 {[%emt 0:00:59]} 30. Nf3 {[%emt 0:00:18]} Nd7 {[%emt 0:00:40]} 31. Ne1 {[%emt 0:00:26]} Bd8 {[%emt 0:01:22]} 32. Nd3 {[%emt 0:00:08]} Bc7 {[%emt 0:00:46]} 33. Be1 {[%emt 0:00:21]} Rxb2 {[%emt 0:02:37]} 34. Rxb2 {[%emt 0:00:05]} Rb5 {[%emt 0:00:36]} 35. Rb4 {[%emt 0:01:07]} Nf6 {[%emt 0:00:21]} 36. Nb2 {[%emt 0:02:14]} Ng4 {[%emt 0:00:38]} 37. Nd1 {[%emt 0:01:17]} Rxb4 {[%emt 0:00:31]} 38. Bxb4 {[%emt 0:00:12]} g5 {[%emt 0:00:23]} 39. h3 {[%emt 0:01:07]} Nf6 {[%emt 0:00:15]} 40. fxg5 {[%emt 0:00:00]} hxg5 {[%emt 0:00:00]} 41. Nb2 {[%emt 0:00:00]} f4 {[%emt 0:00:00]} 42. Kf2 {[%emt 0:00:00]} g4 {[%emt 0:00:00]} 43. exf4 {[%emt 0:00:00]} gxh3 {[%emt 0:00:00]} 44. gxh3 {[%emt 0:00:00]} Bxf4 {[%emt 0:00:00]} 45. Nxa4 {[%emt 0:00:00]} Ne4+ {[%emt 0:00:00]} 46. Kf3 {[%emt 0:00:00]} Bc1 {[%emt 0:00:18]} 47. Nb6 {[%emt 0:00:00]} Bb2 {[%emt 0:00:39]} 48. Ke3 {[%emt 0:00:00]} Bc1+ {[%emt 0:01:17]} 49. Kd3 {[%emt 0:00:19]} Nf2+ {[%emt 0:00:19]} 50. Kc3 {[%emt 0:00:09]} Kf7 {[%emt 0:02:40]} 51. a4 {[%emt 0:00:07]} Ke8 {[%emt 0:00:07]} 52. a5 {[%emt 0:00:16]} Kd8 {[%emt 0:00:17]} 53. a6 {[%emt 0:00:11]} Kc7 {[%emt 0:00:05]} 54. a7 {[%emt 0:00:14]} 1-0

[Event "7th Summer Cup 2024"]
[Site "Rhodes"]
[Date "2024.06.24"]
[Round "3.6"]
[White "Heesen, Jos"]
[Black "Ballas, Athanasios-panagioti"]
[Result "0-1"]
[ECO "B23"]
[WhiteElo "1866"]
[BlackElo "2151"]
[Annotator "RC"]
[PlyCount "98"]
[EventDate "2024.06.22"]
[EventType "swiss"]
[EventCountry "GRE"]
[SourceTitle "playchess.com"]
[Source "ChessBase"]
[SourceQuality "1"]
[TimeControl "15/5400+30:1800+30"]

1. Nc3 {[%emt 0:00:04]} c5 {[%emt 0:00:05]} 2. e4 {[%emt 0:00:07]} e6 {[%emt 0:00:13]} 3. f4 {[%emt 0:00:34]} d5 {[%emt 0:00:19]} 4. e5 {[%emt 0:01:39]} Nc6 {[%emt 0:00:51]} 5. Bb5 {[%emt 0:00:34]} Bd7 {[%emt 0:02:31]} 6. Nf3 {[%emt 0:00:45]} Nge7 {[%emt 0:01:44]} 7. d4 {[%emt 0:02:20]} Nf5 {[%emt 0:00:28]} 8. Bxc6 {[%emt 0:00:53]} bxc6 {[%emt 0:02:55]} 9. Ne2 {[%emt 0:02:30]} Qb6 {[%emt 0:02:07]} 10. c3 {[%emt 0:02:22]} cxd4 {[%emt 0:00:06]} 11. Nexd4 {[%emt 0:01:10]} Nxd4 {[%emt 0:00:56]} 12. cxd4 {[%emt 0:01:29]} c5 {[%emt 0:00:05]} 13. Be3 {[%emt 0:00:55]} Qxb2 {[%emt 0:00:41]} 14. O-O {[%emt 0:01:17]} c4 {[%emt 0:01:39]} 15. Rf2 {[%emt 0:01:38]} Qa3 {[%emt 0:00:11]} 16. Bc1 {[%emt 0:31:44]} Qa4 {[%emt 0:30:21]} 17. Qxa4 {[%emt 0:01:25]} Bxa4 {[%emt 0:00:04]} 18. Rb1 {[%emt 0:00:53]} Bc6 {[%emt 0:04:39]} 19. Rfb2 {[%emt 0:02:00]} Kd7 {[%emt 0:00:39]} 20. Rb8 {[%emt 0:05:39]} Rxb8 {[%emt 0:00:42]} 21. Rxb8 {[%emt 0:00:23]} Kc7 {[%emt 0:00:03]} 22. Rb1 {[%emt 0:01:14]} h6 {[%emt 0:02:06]} 23. Bd2 {[%emt 0:02:01]} Ba3 {[%emt 0:04:14]} 24. Bb4 {[%emt 0:06:48]} Rb8 {[%emt 0:02:48]} 25. Bd6+ {[%emt 0:00:29]} Bxd6 {[%emt 0:00:05]} 26. exd6+ {[%emt 0:00:02]} Kc8 {[%emt 0:00:04]} 27. Rxb8+ {[%emt 1:03:05]} Kxb8 {[%emt 1:13:24]} 28. Ne5 {[%emt 0:00:00]} Bb5 {[%emt 0:00:00]} 29. Kf2 {[%emt 0:00:00]} f6 {[%emt 0:00:00]} 30. Ng6 {[%emt 0:00:00]} Kc8 {[%emt 0:00:00]} 31. Nf8 {[%emt 0:00:00]} Bd7 {[%emt 0:00:00]} 32. g4 {[%emt 0:00:00]} Kd8 {[%emt 0:00:00]} 33. h4 {[%emt 0:00:00]} Bc8 {[%emt 0:00:00]} 34. g5 {[%emt 0:00:00]} hxg5 {[%emt 0:00:00]} 35. hxg5 {[%emt 0:00:00]} fxg5 {[%emt 0:00:00]} 36. fxg5 {[%emt 0:00:00]} Ke8 {[%emt 0:00:00]} 37. Ng6 {[%emt 0:00:00]} Kd7 {[%emt 0:00:00]} 38. Nf4 {[%emt 0:00:00]} Kxd6 {[%emt 0:00:00]} 39. g6 {[%emt 0:00:00]} Bd7 {[%emt 0:00:00]} 40. Ne2 {[%emt 0:00:00]} Be8 {[%emt 0:00:00]} 41. Nc3 {[%emt 0:00:00]} a6 {[%emt 0:00:00]} 42. Ke3 {[%emt 0:00:00]} Bxg6 {[%emt 0:00:00]} 43. Kf4 {[%emt 0:00:00]} Bc2 {[%emt 0:00:00]} 44. a3 {[%emt 0:00:00]} g5+ {[%emt 0:00:00]} 45. Kxg5 {[%emt 0:00:00]} e5 {[%emt 0:00:00]} 46. Ne2 {[%emt 0:00:00]} Bd3 {[%emt 0:00:00]} 47. Nc1 {[%emt 0:00:00]} exd4 {[%emt 0:00:00]} 48. Kf4 {[%emt 0:00:00]} Kc5 {[%emt 0:00:00]} 49. Ke5 {[%emt 0:00:00]} Bc2 {[%emt 0:00:00]} 0-1

[Event "7th Summer Cup 2024"]
[Site "Rhodes"]
[Date "2024.06.24"]
[Round "3.7"]
[White "Budisavljevic, Luka"]
[Black "Szalay-Ocsak, Bank"]
[Result "1-0"]
[ECO "B38"]
[WhiteElo "2468"]
[BlackElo "2279"]
[Annotator "TA"]
[PlyCount "81"]
[EventDate "2024.06.22"]
[EventType "swiss"]
[EventCountry "GRE"]
[SourceTitle "playchess.com"]
[Source "ChessBase"]
[SourceQuality "1"]
[TimeControl "15/5400+30:1800+30"]

{[%evp 16,81,40,37,46,40,34,25,8,6,16,20,37,47,39,41,71,45,126,107,124,73,90,95,108,110,118,108,116,110,142,127,128,123,132,120,148,134,155,131,171,178,176,178,154,152,189,169,193,200,189,167,167,164,179,179,173,178,204,166,216,202,222,214,1277,1169,1710,1551]} 1. Nf3 {[%emt 0:00:04]} c5 {[%emt 0:07:26]} 2. c4 {[%emt 0:00:15]} Nc6 {[%emt 0:00:25]} 3. d4 {[%emt 0:00:18]} cxd4 {[%emt 0:00:20]} 4. Nxd4 {[%emt 0:00:08]} g6 {[%emt 0:00:57]} 5. e4 {[%emt 0:00:11]} Nf6 {[%emt 0:00:43][%cal Bg8f6,Bf6h5,Bh5f4][%mdl 32]} 6. Nc3 {[%emt 0:00:07]} d6 {[%emt 0:00:06]} 7. f3 {[%emt 0:00:43]} Bg7 {[%emt 0:00:33]} 8. Be3 {[%emt 0:00:07]} O-O {[%emt 0:00:47]} 9. Be2 {[%emt 0:00:06]} Nh5 {[%emt 0:00:53][%cal Oh5f4]} 10. Qd2 {[%emt 0:01:30]} Bxd4 {[%emt 0:05:53]} 11. Bxd4 {[%emt 0:00:06]} Nxd4 {[%emt 0:00:04] White has an edge.} 12. Qxd4 {[%emt 0:00:07]} Nf4 {[%emt 0:02:16]} 13. Bf1 {[%emt 0:00:59]} Qa5 {[%emt 0:08:07]} 14. Qd2 {[%emt 0:12:21]} Qe5 {[%emt 0:10:05]} 15. g3 {[%emt 0:05:32]} Ne6 {[%emt 0:03:50]} 16. O-O-O {[%emt 0:31:49]} b5 {[%emt 0:37:14]} 17. cxb5 $16 {[%emt 0:16:40]} Bb7 {[%emt 0:06:39]} 18. Nd5 {[%emt 0:04:36]} (18. Kb1 $142) 18... Rfc8+ {[%emt 0:25:04]} 19. Kb1 {[%emt 0:00:06]} Nc5 {[%emt 0:01:52][%cal Oc5e4]} 20. Qd4 {[%emt 0:10:45]} Bxd5 {[%emt 0:00:57]} 21. Qxd5 {[%emt 0:00:05]} Qf6 {[%emt 0:00:20]} 22. Be2 {[%emt 0:01:11] White is more active.} Rab8 {[%emt 0:01:31]} 23. Qd4 {[%emt 0:00:36] aiming for Qxf6.} Kg7 {[%emt 0:02:35]} 24. Rd2 {[%emt 0:04:18][%cal Bd1d2,Bd2d4,Bd4d5][%mdl 32]} Qxd4 {[%emt 0:01:02]} 25. Rxd4 {[%emt 0:00:02]} Kf6 {[%emt 0:00:09]} 26. Rc1 {[%emt 0:01:12]} g5 {[%emt 0:00:14] Black is weak on the light squares} 27. h3 {[%emt 0:02:55]} h5 {[%emt 0:02:49]} 28. Rd5 {[%emt 0:02:40][%cal Oe4e5]} Ne6 {[%emt 0:00:52]} 29. a4 {[%emt 0:09:58]} Rxc1+ {[%emt 0:02:07]} 30. Kxc1 $18 {[%emt 0:00:01][%mdl 4096] Endgame. KRB-KRN} Nc5 {[%emt 0:00:17]} 31. Bd1 {[%emt 0:02:27]} h4 {[%emt 0:03:17] [#]} 32. gxh4 {[%emt 0:00:34]} gxh4 {[%emt 0:00:01]} 33. b4 {[%emt 0:01:03]} Ne6 {[%emt 0:01:04]} 34. Kd2 {[%emt 0:05:11]} Ng5 {[%emt 0:00:40][%cal Ob8h8] [#]} 35. Ke3 $1 {[%emt 0:01:25]} Nxh3 {[%emt 0:02:13]} 36. Rh5 {[%emt 0:02:37] Prevents Rh8.} e5 {[%emt 0:02:46] ...Nf4 is the strong threat.} 37. Rxh4 {[%emt 0:00:03]} Nf4 {[%emt 0:00:04] Threatens to win with ...Ng2+.} 38. Rh6+ {[%emt 0:00:11]} Ke7 {[%emt 0:00:32]} 39. Bb3 {[%emt 0:00:09]} a6 $2 {[%emt 0:02:31]} (39... Rg8 40. Rh2 Rg1) 40. bxa6 {[%emt 0:00:00][%cal Bb5a6,Ba6a7][%mdl 32]} Rxb4 {[%emt 0:00:00]} 41. a7 {[%emt 0:00:00] Weighted Error Value: White=0.04 (flawless) /Black=0.16 (very precise) .  Mistake:       	White=1     	Black=2      Inaccurate:     	White=1     	Black=3      OK:         	White=12    	Black=9      Best:        	White=4     	Black=1      Strong:       	White=1     	---} 1-0

[Event "7th Summer Cup 2024"]
[Site "Rhodes"]
[Date "2024.06.24"]
[Round "3.8"]
[White "Gelle, Istvan"]
[Black "Perrakis, Polychronis"]
[Result "1-0"]
[ECO "A80"]
[WhiteElo "2163"]
[BlackElo "1754"]
[Annotator "RC"]
[PlyCount "115"]
[EventDate "2024.06.22"]
[EventType "swiss"]
[EventCountry "GRE"]
[SourceTitle "playchess.com"]
[Source "ChessBase"]
[SourceQuality "1"]
[TimeControl "15/5400+30:1800+30"]

1. d4 {[%emt 0:00:03]} e6 {[%emt 0:00:25]} 2. Bf4 {[%emt 0:00:11]} f5 {[%emt 0:00:13]} 3. e3 {[%emt 0:00:16]} Nf6 {[%emt 0:00:29]} 4. Nf3 {[%emt 1:32:00]} Be7 {[%emt 0:00:33]} 5. h3 {[%emt 0:00:00]} O-O {[%emt 0:00:31]} 6. Nbd2 {[%emt 0:00:00]} d6 {[%emt 0:01:16]} 7. a4 {[%emt 0:00:00]} Nc6 {[%emt 1:30:33]} 8. Be2 {[%emt 0:00:00]} h6 {[%emt 0:00:00]} 9. Bh2 {[%emt 0:02:30]} Qe8 {[%emt 0:01:00]} 10. a5 {[%emt 0:00:00]} a6 {[%emt 0:00:00]} 11. c3 {[%emt 0:01:00]} Bd7 {[%emt 0:01:00]} 12. Qb3 {[%emt 0:00:00]} Rb8 {[%emt 0:00:30]} 13. O-O {[%emt 0:00:00]} Kh8 {[%emt 0:00:30]} 14. Bc4 {[%emt 0:01:30]} Qf7 {[%emt 0:00:30]} 15. Kh1 {[%emt 0:00:00]} g5 {[%emt 0:00:00]} 16. Ng1 {[%emt 0:31:00]} Rg8 {[%emt 0:31:00]} 17. f3 {[%emt 0:00:30]} Nd5 {[%emt 0:00:30]} 18. Bxd5 {[%emt 0:00:00]} exd5 {[%emt 0:00:00]} 19. e4 {[%emt 0:00:00]} Be6 {[%emt 0:00:00]} 20. exd5 {[%emt 0:00:00]} Bxd5 {[%emt 0:00:00]} 21. c4 {[%emt 0:02:00]} Nxd4 {[%emt 0:00:00]} 22. Qd3 {[%emt 0:00:30]} Bc6 {[%emt 0:00:00]} 23. Qxd4+ {[%emt 0:00:00]} Bf6 {[%emt 0:00:00]} 24. Qd3 {[%emt 0:01:00]} Bxb2 {[%emt 0:03:30]} 25. Rab1 {[%emt 0:00:00]} Qf6 {[%emt 0:00:00]} 26. Ne2 {[%emt 0:01:00]} Rbe8 {[%emt 0:01:00]} 27. Ng3 {[%emt 0:00:30]} Rgf8 {[%emt 0:00:30]} 28. Nxf5 {[%emt 0:00:00]} Qc3 {[%emt 0:00:00]} 29. Qxc3+ {[%emt 0:00:00]} Bxc3 {[%emt 0:00:00]} 30. Ne4 {[%emt 0:00:00]} Rxf5 {[%emt 0:00:00]} 31. Nxc3 {[%emt 0:00:00]} Rxa5 {[%emt 0:00:00]} 32. Bg1 {[%emt 0:00:00]} Kg8 {[%emt 0:00:00]} 33. Rfe1 {[%emt 0:00:00]} Rxe1 {[%emt 0:00:00]} 34. Rxe1 {[%emt 0:00:00]} Kf7 {[%emt 0:00:00]} 35. Be3 {[%emt 0:00:34]} Re5 {[%emt 0:00:00]} 36. Kg1 {[%emt 0:01:08]} b5 {[%emt 0:00:00]} 37. cxb5 {[%emt 0:00:31]} axb5 {[%emt 0:00:00]} 38. Kf2 {[%emt 0:00:37]} b4 {[%emt 0:00:00]} 39. Ne2 {[%emt 0:00:45]} Bd7 {[%emt 0:00:03]} 40. f4 {[%emt 0:02:55]} Ra5 {[%emt 0:00:00]} 41. Rd1 {[%emt 0:00:30]} g4 {[%emt 0:06:57]} 42. Nc1 {[%emt 0:00:00]} gxh3 {[%emt 0:00:00]} 43. gxh3 {[%emt 0:00:00]} Rh5 {[%emt 0:01:00]} 44. Rd4 {[%emt 0:00:00]} Rb5 {[%emt 0:00:00]} 45. Nd3 {[%emt 0:02:00]} Bxh3 {[%emt 0:00:00]} 46. Rxb4 {[%emt 0:00:00]} Rxb4 {[%emt 0:00:00]} 47. Nxb4 {[%emt 0:00:00]} c5 {[%emt 0:00:00]} 48. Nd5 {[%emt 0:00:00]} Be6 {[%emt 0:02:30]} 49. Nc3 {[%emt 0:00:00]} c4 {[%emt 0:00:00]} 50. Nb5 {[%emt 0:00:00]} Ke7 {[%emt 0:01:00]} 51. Bd2 {[%emt 0:00:00]} d5 {[%emt 0:00:00]} 52. Bb4+ {[%emt 0:00:00]} Kd7 {[%emt 0:00:00]} 53. Kg3 {[%emt 0:00:00]} h5 {[%emt 0:00:00]} 54. Kh4 {[%emt 0:04:30]} Bg4 {[%emt 0:00:00]} 55. Kg5 {[%emt 0:00:00]} Bf3 {[%emt 0:00:15]} 56. f5 {[%emt 0:00:00]} Ke8 {[%emt 0:02:45]} 57. Kg6 {[%emt 0:00:00]} Bg4 {[%emt 0:00:00]} 58. f6 {[%emt 0:00:00]} 1-0